Cogmind - Beta 11 @@@ ROGUE MODE // 2022.04.21 @ 18:36:12 Player: Inverisimilidude Result: Self-destructed Performance ------------- Evolutions (1) 500 Regions Visited (3) 600 Robots Destroyed (10) 50 Value Destroyed (278) 278 Prototype IDs (0) 0 Alien Tech Used (0) 0 Bonus (0) 0 TOTAL SCORE: 1428 Bonus ------- None Cogmind --------- Core Integrity 372/400 Matter 300/300 Energy 265/265 System Corruption 1% Temperature Cool (88) Movement Walking (120) Location -9/Materials Parts ------- > --- POWER (1) -------- Improved Ion Engine > --- PROPULSION (3) --- Aluminum Leg Aluminum Leg Improved Aluminum Leg > --- UTILITY (3) ------ Small Storage Unit Transport Network Coupler Improved Targeting Computer > --- WEAPON (2) ------- Beam Rifle Light Assault Rifle > --- INVENTORY (8) ---- Improved Ion Engine Aluminum Leg Compact Wheel Visual Processing Unit Peak State ------------ > --- POWER ------------ Improved Ion Engine > --- PROPULSION ------- Aluminum Leg Aluminum Leg Improved Aluminum Leg > --- UTILITY ---------- Small Storage Unit Transport Network Coupler Improved Targeting Computer > --- WEAPON ----------- Beam Rifle Light Assault Rifle > --- INVENTORY -------- Improved Ion Engine Aluminum Leg Compact Wheel Visual Processing Unit [Rating: 13] Favorites ----------- Power Improved Ion Engine Engine Improved Ion Engine Propulsion Aluminum Leg Leg Aluminum Leg Wheel Compact Wheel Utility Small Storage Unit Storage Small Storage Unit Processor Improved Targeting Computer Weapon Light Assault Rifle Energy Gun Beam Rifle Ballistic Gun Light Assault Rifle Launcher Grenade Launcher Build | -11 -10 -10 -9 ------- Run | Scr Mat Min Mat Slots Evolved 2 | . . . 2 Power . | . . . . Propulsion 1 | . . . 1 Utility 1 | . . . 1 Weapon . | . . . . Parts Attached 14 | 6 3 1 4 Power 2 | 1 1 . . Engine 2 | 1 1 . . Core . | . . . . Reactor . | . . . . Propulsion 5 | 2 2 . 1 Treads . | . . . . Leg 3 | . 2 . 1 Wheel 2 | 2 . . . Hover . | . . . . Flight . | . . . . Utility 3 | 1 . . 2 Device . | . . . . Storage 1 | 1 . . . Processor 2 | . . . 2 Hackware . | . . . . Protection . | . . . . Artifact . | . . . . Weapon 4 | 2 . 1 1 Energy Gun 2 | 1 . . 1 Energy Cannon . | . . . . Ballistic Gun 1 | 1 . . . Ballistic Cannon . | . . . . Launcher 1 | . . 1 . Special Weapon . | . . . . Impact Weapon . | . . . . Slashing Weapon . | . . . . Piercing Weapon . | . . . . Special Melee Weapon . | . . . . Unidentified Prototypes . | . . . . Parts Lost 3 | . 2 . 1 Power . | . . . . Propulsion 1 | . 1 . . Utility . | . . . . Weapon 2 | . 1 . 1 Highest Loss Streak 2 | . 2 . 1 To Critical Strikes . | . . . . Average Slot Usage (%) 86 | . 80 85 92 Engine 12 | . 14 14 11 Leg 23 | . 7 28 30 Wheel 5 | . 21 . . Storage 12 | . 14 14 11 Processor 6 | . . . 17 Energy Gun 5 | . 9 . 7 Ballistic Gun 12 | . 14 14 11 Launcher 6 | . . 14 4 Naked Turns . | . . . . Heaviest Build 16 | 13 15 16 16 Greatest Support 33 | 26 26 20 33 Greatest Overweight (x) 1 | 1 . . . Average Overweight (x) . | . . . . Largest Inventory Capacity 8 | 8 8 8 8 Average Capacity 7 | 7 8 8 8 Most Carried 7 | 3 7 5 6 Average Carried 4 | 1 4 5 4 Final Capacity 8 | 8 8 8 8 Final Carried 6 | 3 6 5 4 Class Distribution -------------------- 100% | Mutant Dominant Class ---------------- Mutant | -10/Materials Mutant | -10/Mines Mutant | -9/Materials Resources | -11 -10 -10 -9 ----------- Run | Scr Mat Min Mat Matter Collected 409 | 260 18 30 101 Remotely . | . . . . Salvage Created 303 | . 74 . 229 Parts 18 | . 2 . 16 Haulers Intercepted 1 | . . . 1 Recyclers Shooed . | . . . . Parts Field Recycled . | . . . . Retrieved Matter . | . . . . Parts Self-Destructed . | . . . . Prevented . | . . . . Kills | -11 -10 -10 -9 ------- Run | Scr Mat Min Mat Combat Hostiles Destroyed 9 | . 2 . 7 Guns 7 | . 1 . 6 AOE 2 | . 1 . 1 Classes Destroyed 4 | . 1 . 3 Hauler 1 | . . . 1 Swarmer 4 | . . . 4 Grunt 2 | . 2 . . Sentry 3 | . . . 3 Best Kill Streak 6 | . 2 . 6 Combat Bots Only 6 | . 2 . 6 Max Kills in Single Turn 2 | . 1 . 2 Gunslinging . | . . . . Exploded 1 | . 1 . 1 Melee . | . . . . Uniques/NPCs Destroyed . | . . . . Combat | -11 -10 -10 -9 -------- Run | Scr Mat Min Mat Damage Taken 661 | . 311 61 289 Core 175 | . 132 15 28 Absorbed by Shields . | . . . . Core Remaining (%) 70 | 100 . 41 . Volleys Fired 29 | . 8 . 21 Largest 2 | . 2 . 2 Hottest 76 | . 60 . 76 Shots Fired 57 | . 16 . 41 Gun 54 | . 16 . 38 Cannon . | . . . . Launcher 3 | . . . 3 Special . | . . . . Kinetic 29 | . 8 . 21 Thermal 17 | . . . 17 Explosive 3 | . . . 3 Electromagnetic 8 | . 8 . . Robot Hit Streak 8 | . 8 . 4 Robot Miss Streak 2 | . 2 . 2 Penetration Max . | . . . . Secondary Targets 1 | . . . 1 Max Gunslinging Chain 1 | . . . 1 Shots Hit Robots 35 | . 12 . 23 Core Hits 21 | . 6 . 15 Critical Kills . | . . . . Critical Parts Destroyed . | . . . . Critical Strikes 1 | . . . 1 Burn 1 | . . . 1 Melee Attacks . | . . . . Impact . | . . . . Slashing . | . . . . Piercing . | . . . . Sneak Attacks . | . . . . Combat Hostiles . | . . . . Follow-up Attacks . | . . . . Damage Inflicted 577 | . 234 . 343 Guns 368 | . 120 . 248 Cannons . | . . . . Explosions 209 | . 114 . 95 Melee . | . . . . Ramming . | . . . . Kinetic 134 | . 45 . 89 Thermal 159 | . . . 159 Explosive 209 | . 114 . 95 Electromagnetic 75 | . 75 . . Impact . | . . . . Slashing . | . . . . Piercing . | . . . . Highest Corruption 1 | . . . 1 Average Corruption 1 | . . . 1 Corruption Purged . | . . . . Corruption Blocked . | . . . . Effects 3 | . . . 3 Matter Fused 1 | . . . 1 Energy Discharges 2 | . . . 2 Overload Shots . | . . . . Overflow Damage 37 | . 37 . . Projectiles . | . . . . Explosions 37 | . 37 . . Melee . | . . . . Knockbacks . | . . . . Impact . | . . . . Kinetic . | . . . . Secondary . | . . . . Self-Inflicted Damage 197 | . 197 . . Shots 2 | . 2 . . Rammed . | . . . . Targets Rammed . | . . . . Kicked . | . . . . Crushed . | . . . . Highest Temperature 265 | . 76 . 265 Average Temperature 94 | . 41 . 118 Received Heat Transfer 138 | . 66 36 36 Siege Activations . | . . . . Robots Corrupted . | . . . . Combat Hostiles . | . . . . Parts Fried . | . . . . Impact Corruptions . | . . . . Robots Melted . | . . . . Combat Hostiles . | . . . . Parts Melted 1 | . . . 1 Heat Transferred 481 | . . . 481 Parts Sabotaged . | . . . . Parts Stolen . | . . . . Parts Stripped . | . . . . Power Chain Reactions . | . . . . Missiles Intercepted . | . . . . Alert | -11 -10 -10 -9 ------- Run | Scr Mat Min Mat Peak Influence 336 | . 188 96 336 Initial 73 | . . 73 37 Average 94 | . 68 75 152 Maximum Alert Level 1 | . . . 1 Low Security (%) 93 | 100 100 100 81 Level 1 6 | . . . 18 Level 2 . | . . . . Level 3 . | . . . . Level 4 . | . . . . Level 5 . | . . . . High Security . | . . . . Max Security . | . . . . Squads Dispatched . | . . . . Investigation . | . . . . Extermination . | . . . . Reinforcement . | . . . . Assault . | . . . . Garrison . | . . . . Intercept . | . . . . Searches Triggered . | . . . . Construction Impeded . | . . . . Haulers Reinforced . | . . . . Active Scanning Responses . | . . . . Cargo Convoy Interrupts . | . . . . Stealth | -11 -10 -10 -9 --------- Run | Scr Mat Min Mat Distress Signals 2 | . . . 2 Communications Jammed . | . . . . Distress Signals . | . . . . Times Spotted 17 | . 2 2 13 Peak Tracking Total 9 | . 2 2 9 Tactical Retreats 2 | . . 1 1 Traps | -11 -10 -10 -9 ------- Run | Scr Mat Min Mat Traps Triggered . | . . . . Indirectly . | . . . . Trap Hack Attempts . | . . . . Triggered . | . . . . Disarmed . | . . . . Reprogrammed . | . . . . Reused . | . . . . Traps Extracted . | . . . . Installed . | . . . . Triggered . | . . . . Machines | -11 -10 -10 -9 ---------- Run | Scr Mat Min Mat Machines Disabled 2 | . 2 . . Max in Single Turn 1 | . 1 . . Machines Sabotaged . | . . . . Garrisons Compromised . | . . . . Overloaded Fab Kills . | . . . . Hacking | -11 -10 -10 -9 --------- Run | Scr Mat Min Mat Machines Accessed 7 | . 1 2 4 Terminals 7 | . 1 2 4 Fabricators . | . . . . Repair Stations . | . . . . Recycling Units . | . . . . Scanalyzers . | . . . . Garrison Access . | . . . . Total Hacks 14 | . 1 5 8 Successful 7 | . 1 2 4 Failed 7 | . . 3 4 Catastrophic 2 | . . 1 1 Database Lockouts . | . . . . Manual 10 | . 1 3 6 Terminals 14 | . 1 5 8 Fabricators . | . . . . Repair Stations . | . . . . Recycling Units . | . . . . Scanalyzers . | . . . . Garrison Access . | . . . . Terminal Hacks 5 | . 1 2 2 Level Access Points 1 | . . 1 . Branch Access Points 3 | . 1 1 1 Recall Investigation 1 | . . . 1 Fabricator Hacks . | . . . . Repair Station Hacks . | . . . . Recycling Unit Hacks . | . . . . Scanalyzer . | . . . . Garrison Access Hacks . | . . . . Unauthorized Hacks 2 | . . . 2 Terminals 2 | . . . 2 Assimilate 1 | . . . 1 Botnet 1 | . . . 1 Fabricators . | . . . . Repair Stations . | . . . . Recycling Units . | . . . . Scanalyzers . | . . . . Garrison Access . | . . . . Data Cores Recovered . | . . . . Used . | . . . . Hacking Detections 6 | . . 2 4 Full Trace Events 1 | . . . 1 Feedback Events 1 | . . . 1 Corruption 1 | . . . 1 Feedback Blocked . | . . . . Robot Schematics Acquired . | . . . . Robots Built . | . . . . Authchips . | . . . . Time . | . . . . Total Robot Build Rating . | . . . . Part Schematics Acquired . | . . . . Parts Built . | . . . . Authchips . | . . . . Time . | . . . . Total Part Build Rating . | . . . . Parts Repaired . | . . . . Time . | . . . . Parts Recycled . | . . . . Recycled Matter . | . . . . Retrieved Matter . | . . . . Retrieved Components . | . . . . Parts Scanalyzed . | . . . . Part Schematics Acquired . | . . . . Parts Damaged . | . . . . Bothacking | -11 -10 -10 -9 ------------ Run | Scr Mat Min Mat Used RIF Installer . | . . . . Robots Hacked . | . . . . Non-combat . | . . . . Combat . | . . . . Robot Hacks Applied . | . . . . Relay Couplers Released . | . . . . Fabnet Peak Effective % . | . . . . Robots Rewired . | . . . . Allies Hacked . | . . . . Hacks Repelled . | . . . . Allies | -11 -10 -10 -9 -------- Run | Scr Mat Min Mat Total Allies . | . . . . Largest Group . | . . . . Highest-Rated Group . | . . . . Highest-Rated Ally . | . . . . Total Orders . | . . . . Ally Attacks . | . . . . Total Damage . | . . . . Kills . | . . . . Allies Corrupted . | . . . . Allies Melted . | . . . . Intel | -11 -10 -10 -9 ------- Run | Scr Mat Min Mat Robot Analysis Total . | . . . . Derelict Logs Recovered . | . . . . Drone Launches . | . . . . Drone Recoveries . | . . . . Exploration | -11 -10 -10 -9 ------------- Run | Scr Mat Min Mat Turns Passed 639 | 46 158 223 212 Spaces Moved 469 | 39 125 186 119 Core 3 | 3 . . . Treads . | . . . . Legs 341 | . 36 186 119 Wheels 125 | 36 89 . . Hover . | . . . . Flight . | . . . . Fastest Speed 50 | 50 90 120 120 Average Speed 111 | 88 98 120 120 Slowest Speed 120 | 100 120 120 120 Overloaded Moves . | . . . . Propulsion Burnouts . | . . . . Robots Hopped . | . . . . Cave-ins Triggered . | . . . . Exploration Rate (%) 21 | 3 23 48 11 Regions Visited 3 Branch Regions 1 Pre-discovered Areas . | . . . . Known Exits Taken 2 | . 1 1 . Unknown Exits Taken 1 | 1 . . . Scrap Searched 1 | . . 1 . Spaces Dug . | . . . . Terrain Destroyed 74 | . 48 . 26 Melee . | . . . . Projectile . | . . . . AOE 74 | . 48 . 26 Terrain Rammed . | . . . . Walls Destroyed . | . . . . Machines Disabled . | . . . . Actions | -11 -10 -10 -9 --------- Run | Scr Mat Min Mat Total 529 | 47 146 186 150 Wait 9 | . 5 . 4 Move 466 | 38 124 185 119 Hop . | . . . . Pick Up 8 | 3 4 . 1 Fast Attach 9 | 6 . . 3 Attach 4 | . 2 1 1 Detach 1 | . 1 . . Swap 1 | . 1 . . Drop 2 | . 1 . 1 Fire 29 | . 8 . 21 Melee . | . . . . Ram . | . . . . Kick . | . . . . Crush . | . . . . Escape Stasis . | . . . . Rewire . | . . . . Trap . | . . . . Miscellaneous . | . . . . Route ------- -11/Scrapyard -10/Materials (discovered 2 exits: *Min x2) -10/Mines (discovered 2 exits: *Mat x2) -9/Materials (discovered 2 exits: Min x2) History --------- Turn | Location | Event 22 | -11/Scrapyard | Discovered new exit (range 16) 47 | -11/Scrapyard | Entered Materials 60 | -10/Materials | Identified exit to Mines 161 | -10/Materials | Core integrity fell below 50% 205 | -10/Materials | Entered Mines 212 | -10/Mines | Identified exit to Materials 221 | -10/Mines | Met a Derelict bent on vengeance 302 | -10/Mines | Build established: Mutant 395 | -10/Mines | Found a hidden stash of uninstalled traps 428 | -10/Mines | Entered Materials 428 | -9/Materials | Evolved 2 slots: Propulsion x1, Utility x1 633 | -9/Materials | Identified exit to Mines 640 | -9/Materials | Self-destructed Last Messages --------------- 00612_ S-10 Pest suffers critical hit (Burn). 00612_ Flight Unit melted. 00612_ S-10 Pest destroyed. 00613_ Acquired 10 matter. 00620_ Y-45 Defender destroyed. 00621_ Acquired 4 matter. 00623_ Y-45 Defender destroyed. 00624_ Acquired 1 matter. 00629_ S-10 Pest destroyed. 00630_ Acquired 1 matter. 00633_ Connecting with Terminal... >>Access(Branch) Found 2 branch access points: (50,49) Mines (19,25) Mines Map updated. >>Trojan(Assimilate) Trojan loaded successfully. Testing... System interface override in place. Map ----- +----------------------------------------------------+ | ?????????????????????????????????????????????? | | ?????????????????????????????????????????????? | | ???????????????????>?????????????????????????? | | ?????????????????????????????????????????????? | | ?????????????????????????????????????????????? | | ?????????????????????????????????????????????? | | ?????????????????????????????????????????????? | | ?????????????????????????????????????????????? | | ?????????????????????????????????????????????? | | ??????????????????? ?????????????????????????? | | ??????????????????? ?????????????????????????? | | ??????????????????? ?????????????????????????? | | ??????????????????? ?????????????????????????? | | ??????????????????? ?????????????????????????? | | ??????????????????? ?????????????????????????? | | ??????????????????? ?????????????????????????? | | ??????????????????# #????????????????????????? | | ??????????????????# #????????????????????????? | | ????????????####??# #????????????????????????? | | ????????????? ?# #????????????????????????? | | ???????????????" # #????????????????????????? | | ???????????????? # ########?????????????????? | | ????????????????? +*#%""" ##????????????????? | | ??????????????????#*#="T" #????????????????? | | ??????????????????#w/%*= ##????????????????? | | ??????????????????#=#@[! #?????????????????? | | ??????????????????# #!! ] #?????????????????? | | ??????????????????# #! #?????????????????? | | ??????????????????# #########????????????????? | | ?????????????????## ## #????????????????? | | ????????????????## # #????????????????? | | ????????????????# #????????????????? | | ????????????????# # #????????????????? | | ????????????????## # #????????????????? | | ?????????????????## # #????????????????? | | ????????????????## ####+###????????????????? | | ???????????????## # # ### #??????????????????? | | ???????????????# # # ### #??????????????????? | | ???????????????##!* ### #??????????????????? | | ??????????######= ! ## #?###??????????????? | | ??????????# / !* ##+### #####??????????? | | ??????????# # ## T #??????????? | | ??????????# # ## #??????????? | | ??????????# ""## # # ## """ #??????????? | | ??????????# ""########## === """ #??????????? | | ??????????# T"#????????# == """ #??????????? | | ??????????# ""#????????# == #??????????? | | ??????????# ""#????????# #??????????? | | ????####### #????????# #??????????? | | ????# ###+###############+#######????????? | +----------------------------------------------------+ Best States ------------- Heat Dissipation 28 Energy Generation 12 Energy Capacity 265 Matter Stores 300 Matter Capacity 300 Sight Range 16 Terrain Scan Density 10 Evasion (%) 55 Targeting Accuracy 6 Item Schematics ----------------- None Robot Schematics ------------------ None Fabricated ------------ Nothing Alien Tech Used ----------------- None Achievements -------------- True Hacker Challenges ------------ None Game ------ Seed AntimissileTrackerPit Manual? 0 Play Time 00:25:06 Cumulative 24.9 hours Start 2022.03.18 @ 19:58:27 End 2022.04.21 @ 18:36:12 Sessions 11 Manual Loads 0 Difficulty Rogue Special Mode None Game No. 26 Rogue 26 Adventurer 0 Explorer 0 Win Type - Total 0 Types 0/0/0/0/0/0/0/0/0 Lore% 27 Gallery% 24 Achievement% 23 Wizard Run 0 Options --------- ASCII 0 Keyboard 0 Movement Arrows Keybinds 0 Fullscreen 1 Font 18/SmallcapsGlow Map View 76x50 Tactical HUD 1 Map Filters NONE Filters NONE Steam 1 RUN: 58593778-d283-43dd-98a2-6bf6ef3ff9ac